lending/lending_fUSD_20250121
["ID","MTS","AMOUNT","RATE_DAILY","PERIOD"]
[349831445,1737454263068,-200.0,0.00021753,2]
[349831446,1737454263081,-7800.2045855,0.00021754,2]
[349831447,1737454263101,-11152.019923,0.00021755,2]
[349831448,1737454263131,-5063.3945,0.00021756,30]
[349831449,1737454263143,-36332.94395692,0.00021757,2]
[349831450,1737454263155,-231.93358399,0.00021757,2]
[349831451,1737454263170,-393.30728336,0.00021758,2]
[349831452,1737454263183,-915.28365495,0.00021758,2]
[349831453,1737454263195,-2699.99662852,0.00021759,2]
[349831454,1737454263207,-3660.51208475,0.0002176,2]
[349831455,1737454263219,-1106.3971267,0.00021761,2]
[349831456,1737454263233,-1428.22876759,0.00021761,2]
[349831457,1737454263244,-480.7502708,0.00021762,3]
[349831458,1737454263256,-7800.2045855,0.00021762,2]
[349831459,1737454263268,-9007.2606004,0.00021763,2]
[349831460,1737454263281,-4355.21673153,0.00021765,2]
[349831461,1737454263293,-8940.36013752,0.00021766,2]
[349831462,1737454263304,-22779.24709211,0.00021769,2]
[349831463,1737454263315,-87379.71870107,0.00021769,2]
[349831464,1737454263543,-1490.43602414,0.00021769,2]
[349831465,1737454263556,-2568.2451654,0.00021769,2]
[349831466,1737454263569,-3292.27565339,0.00021769,2]
[349831467,1737454263585,-644.718,0.00021769,2]
[349831468,1737454263597,-553.048821,0.00021769,2]
[349831469,1737454263609,-2156.03251395,0.00021769,2]
[349831470,1737454263627,-12944.51835097,0.00021769,2]
[349831471,1737454263639,-16892.67561305,0.00021769,2]
[349831472,1737454263650,-915.28365496,0.00021772,2]
[349831473,1737454263659,-9007.2606004,0.00021772,2]
[349831474,1737454263670,-7577.37104572,0.00021772,2]
[349831475,1737454263681,-11152.019923,0.00021773,2]
[349831476,1737454263692,-6184.34009232,0.00021773,2]
[349831477,1737454263701,-22779.24709211,0.00021774,2]
[349831478,1737454263711,-150.0,0.00021776,2]
[349831479,1737454263721,-1623.72236694,0.00021777,2]
[349831480,1737454263735,-7577.37104572,0.00021778,2]
[349831481,1737454263747,-6858.19949187,0.00021778,2]
[349831482,1737454263762,-2082.16064565,0.00021778,2]
[349831483,1737454263773,-29326.68694657,0.0002178,2]
[349831484,1737454263790,-36070.0458236,0.0002178,2]
[349831485,1737454263804,-4390.62483754,0.0002178,2]
[349831486,1737454263819,-312.095598,0.0002178,2]
[349831487,1737454263832,-802.66496489,0.0002178,2]
[349831488,1737454263847,-632.27300002,0.0002178,2]
[349831489,1737454263863,-425.1582348,0.0002178,2]
[349831490,1737454263885,-46909.43456807,0.0002178,2]
[349831491,1737454263898,-2240.91721747,0.0002178,2]
[349831492,1737454263914,-856.2799995,0.0002178,2]
[349831493,1737454264362,-500.0,0.0001935,2]
[349831494,1737454264549,-617.8968922,0.00019391,2]
[349831495,1737454264560,-148.33966282,0.00019624,2]
[349831496,1737454264574,-351.66033718,0.00019624,2]
[349831497,1737454264586,-512.89,0.00019898,2]
[349831498,1737454264597,-562.91608935,0.00021178,2]
[349831499,1737454264612,-418.87391065,0.00021178,2]
[349831500,1737454264628,-354.32608935,0.0002178,2]
[349831501,1737454264642,-759.65495948,0.0002178,2]
[349831502,1737454264654,-8545.85860764,0.0002178,2]
[349831503,1737454264672,-1106.0,0.00020721,2]
[349831504,1737454264683,-5749.90067227,0.0002178,2]
[349831505,1737454264701,-312.934998,0.0002178,2]
[349831506,1737454264715,-1469.6840553,0.0002178,2]
[349831507,1737454264734,-1132.58449139,0.0002178,2]
[349831508,1737454264748,-931.43101342,0.0002178,2]
[349831509,1737454264762,-4415.71371553,0.0002178,2]
[349831510,1737454264828,-81549.70101824,0.0002178,2]
[349831511,1737454264839,-2676.48376585,0.00021781,2]
[349831512,1737454264850,-6997.34460471,0.00021782,2]
[349831513,1737454264861,-200.0,0.00021782,2]
[349831514,1737454264878,-7577.37104572,0.00021783,2]
[349831515,1737454264890,-1135.50629095,0.00021784,2]
[349831516,1737454264904,-1540.9774749,0.00021784,2]
[349831517,1737454264915,-2622.75193431,0.00021785,2]
[349831518,1737454264928,-4954.61911141,0.00021785,2]
[349831519,1737454264939,-16578.65559351,0.00021786,2]
[349831520,1737454264952,-10377.31968114,0.00021786,2]
[349831521,1737454264965,-1359.61261136,0.00021786,2]
[349831522,1737454264980,-513.31,0.00021786,2]
[349831523,1737454264993,-11116.34384161,0.00021786,2]
[349831524,1737454265314,-507.98960549,0.00021786,2]
[349831525,1737454265330,-781.24998323,0.00021786,2]
[349831526,1737454265349,-848.38882723,0.00021786,2]
[349831527,1737454265363,-3639.43722542,0.00021786,2]
[349831528,1737454578336,50000.0,0.0002267,30]
[349831529,1737454597240,50000.0,0.0002267,31]
[349831530,1737454602295,50000.0,0.0002267,32]
[349831531,1737454610291,50000.0,0.0002267,33]
[349831532,1737454614273,50000.0,0.0002267,34]
[349831534,1737454844646,152.62,0.00010137,2]
[349831535,1737454903969,50000.0,0.00022667,30]
[349831536,1737454907452,50000.0,0.00022667,31]
[349831537,1737454910860,50000.0,0.00022667,32]
[349831538,1737454914132,50000.0,0.00022667,33]
[349831539,1737454917157,50000.0,0.00022667,34]
[349831541,1737455236627,1944.0,0.00010217,2]
[349831565,1737455431498,-200.0,0.000119,4]
[349831566,1737455431508,-903.55713475,0.00011929,2]
[349831567,1737455431519,-24410.96212317,0.00011929,2]
[349831568,1737455431528,-500.0,0.00011973,2]
[349831569,1737455431537,-300.0,0.00011999,2]
[349831570,1737455431546,-112084.28429305,0.00012,2]
[349831571,1737455431557,-228255.87154854,0.00012,2]
[349831572,1737455431568,-3165.50000002,0.00012,2]
[349831573,1737455431610,-51600.0,0.00012,2]
[349831574,1737455431666,-8574.54900431,0.00012,2]
[349831575,1737455431713,-282.79751784,0.00012,2]
[349831576,1737455431768,-1227.26319094,0.00012,2]
[349831577,1737455431823,-181839.87015979,0.00012,2]
[349831578,1737455431834,-303586.06284175,0.00012,2]
[349831579,1737455431931,-62767.48882349,0.00012,2]
[349831580,1737455431986,-310.05771303,0.00012,2]
[349831581,1737455431997,-1000.398,0.00012,2]
[349831589,1737455437433,-1264.43557993,0.00012,2]
[349831590,1737455437444,-4075.24140718,0.00012,2]
[349831591,1737455437456,-9774.94543347,0.00012,2]
[349831592,1737455437468,-369.472988,0.00012,2]
[349831593,1737455437488,-275.51859053,0.00012,2]
[349831594,1737455437543,-8761.52160548,0.00012,2]
[349831595,1737455437607,-122025.60423417,0.00012,2]
[349831596,1737455437617,-370.09706082,0.00012029,2]
[349831597,1737455437627,-761.41185309,0.00012229,2]
[349831598,1737455437638,-173.12,0.00012329,2]
[349831599,1737455437647,-1000.0,0.00012521,2]
[349831600,1737455437658,-25314.51925788,0.00013022,2]
[349831601,1737455437667,-420.0,0.00013172,2]
[349831602,1737455437676,-1512.29213182,0.00013522,2]
[349831603,1737455437685,-370.09706076,0.00013674,2]
[349831604,1737455437694,-610.19,0.000137,2]
[349831605,1737455437704,-610.19,0.000137,2]
[349831606,1737455437713,-610.19,0.000137,2]
[349831607,1737455437722,-610.19,0.000137,2]
[349831608,1737455437732,-610.19,0.000137,2]
[349831609,1737455437741,-25314.51925788,0.00014116,2]
[349831610,1737455437750,-8091.04908055,0.0001439,2]
[349831611,1737455437759,-587.0,0.0001446,2]
[349831612,1737455437770,-1132.8,0.00014474,2]
[349831613,1737455437779,-178.16255006,0.0001499,2]
[349831614,1737455437788,-14913.50629015,0.00015,2]
[349831615,1737455437798,-25314.51925788,0.00015209,2]
[349831616,1737455437808,-370.09706076,0.00015319,2]
[349831617,1737455437817,-823.0,0.00015874,2]
[349831618,1737455437826,-25314.51925788,0.00016303,2]
[349831619,1737455437836,-1132.8,0.00016738,2]
[349831620,1737455437845,-206.70261607,0.000169,2]
[349831621,1737455437855,-206.70261586,0.000169,2]
[349831622,1737455437864,-206.70261586,0.000169,2]
[349831623,1737455437873,-206.70261586,0.000169,2]
[349831624,1737455437883,-206.70261586,0.000169,2]
[349831626,1737455437893,-206.70261586,0.000169,2]
[349831628,1737455437903,-206.70261586,0.000169,2]
[349831630,1737455437913,-206.70261586,0.000169,2]
[349831631,1737455437922,-206.70261586,0.000169,2]
[349831632,1737455437931,-206.70261586,0.000169,2]
[349831633,1737455437940,-370.09706076,0.00016965,2]
[349831634,1737455437949,-206.70261586,0.00016991,2]
[349831635,1737455437958,-250.0,0.00017155,2]
[349831636,1737455437967,-173.12,0.00017352,2]
[349831637,1737455437977,-25314.51925788,0.00017396,2]
[349831638,1737455437986,-206.70261586,0.000174,2]
[349831639,1737455437995,-1152.0,0.00017426,2]
[349831640,1737455438004,-1164.72,0.00017777,2]
[349831641,1737455438013,-215.23126687,0.000178,2]
[349831642,1737455438022,-215.23126687,0.000178,2]
[349831643,1737455438031,-206.70261586,0.00017809,2]
[349831644,1737455438040,-1134.69299651,0.00018,2]
[349831645,1737455438049,-306.12552208,0.00018,2]
[349831646,1737455438058,-724.08219733,0.00018178,2]
[349831647,1737455438067,-206.70261586,0.00018218,2]
[349831648,1737455438076,-252.35,0.00018289,2]
[349831649,1737455438085,-250.0,0.00018331,2]
[349831650,1737455438094,-7653.11,0.00018356,2]
[349831651,1737455438103,-250.0,0.00018509,2]
[349831652,1737455438112,-152.62,0.00018594,2]
[349831654,1737455438121,-370.09706076,0.0001861,2]
[349831656,1737455438131,-206.70261586,0.00018627,2]
[349831658,1737455438141,-1164.72,0.00018666,2]
[349831660,1737455438150,-23900.0,0.00018766,2]
[349831662,1737455438159,-771.69,0.00018769,2]
[349831664,1737455438168,-1000.0,0.00018796,2]
[349831666,1737455438177,-170.02,0.00018838,2]
[349831668,1737455438186,-500.0,0.000189,6]
[349831670,1737455438196,-521.4,0.00018942,2]
[349831671,1737455438205,-200.0,0.00018945,2]
[349831673,1737455438214,-1132.8,0.00019002,2]
[349831675,1737455438223,-206.70261586,0.00019036,2]
[349831677,1737455438232,-500.0,0.0001912,2]
[349831679,1737455438243,-1613.0,0.0001913,2]
[349831681,1737455438259,-102519.01,0.0001914,2]
[349831683,1737455438268,-540.72,0.00019141,30]
[349831685,1737455438277,-258.67,0.00019177,2]
[349831687,1737455438286,-896.64,0.00019178,2]
[349831689,1737455438295,-802.54,0.00019178,2]
[349831691,1737455438305,-599.33,0.00019178,2]
[349831693,1737455438315,-500.0,0.00019178,2]
[349831695,1737455438324,-1130.76,0.00019178,2]
[349831697,1737455438333,-1764.8,0.00019178,2]
[349831699,1737455438342,-500.0,0.00019178,2]
[349831701,1737455438351,-1170.87,0.00019178,2]
[349831703,1737455438360,-1935.46,0.00019178,2]
[349831704,1737455438369,-500.0,0.00019178,2]
[349831705,1737455438379,-1397.15,0.00019178,2]
[349831706,1737455438390,-888.75,0.00019178,2]
[349831707,1737455438399,-500.0,0.00019178,2]
[349831708,1737455438408,-997.88,0.00019178,2]
[349831709,1737455438417,-709.63,0.00019178,2]
[349831710,1737455438427,-902.94,0.00019178,2]
[349831711,1737455438439,-2544.76,0.00019178,2]
[349831712,1737455438448,-850.52,0.00019178,2]
[349831713,1737455438458,-2292.3,0.00019178,2]
[349831714,1737455438468,-500.0,0.00019178,2]
[349831715,1737455438484,-500.0,0.00019178,2]
[349831716,1737455438493,-500.0,0.00019178,2]
[349831717,1737455438505,-543.61,0.00019178,2]
[349831718,1737455438517,-500.0,0.00019178,2]
[349831719,1737455438527,-500.0,0.00019178,2]
[349831720,1737455438536,-500.0,0.00019178,2]
[349831721,1737455438546,-500.0,0.00019178,2]
[349831722,1737455438555,-500.0,0.00019178,2]
[349831723,1737455438568,-1534.04,0.00019178,2]
[349831724,1737455438577,-500.0,0.00019178,2]
[349831725,1737455438587,-500.0,0.00019178,2]
[349831726,1737455438597,-500.0,0.00019178,2]
[349831727,1737455438607,-500.0,0.00019178,2]
[349831728,1737455438618,-1237.06,0.00019178,2]
[349831729,1737455438628,-500.0,0.00019178,2]
[349831730,1737455438638,-501.68267903,0.00019178,2]
[349831731,1737455438648,-500.0,0.00019178,2]
[349831732,1737455438657,-500.0,0.00019178,2]
[349831733,1737455438667,-500.0,0.00019178,2]
[349831734,1737455438676,-501.40149947,0.00019178,2]
[349831735,1737455438686,-500.0,0.00019178,2]
[349831736,1737455438695,-500.0,0.00019178,2]
[349831737,1737455438705,-500.0,0.00019178,2]
[349831738,1737455438714,-500.0,0.00019178,2]
[349831739,1737455438723,-500.55822954,0.00019178,2]
[349831740,1737455438733,-502.04417926,0.00019178,2]
[349831741,1737455438742,-500.0,0.00019178,2]
[349831742,1737455438751,-503.1461372,0.00019178,2]
[349831743,1737455438760,-500.0,0.00019178,2]
[349831744,1737455438770,-337197.2285,0.00019289,2]
[349831745,1737455438779,-1152.191,0.0001935,2]
[349831746,1737455438788,-501.75261907,0.00019389,2]
[349831747,1737455438798,-500.0,0.00019389,2]
[349831748,1737455438807,-500.0,0.00019389,2]
[349831749,1737455438816,-500.0,0.00019389,2]
[349831750,1737455438826,-500.0,0.00019389,2]
[349831751,1737455438835,-500.0,0.00019389,2]
[349831752,1737455438845,-506.78974888,0.00019389,2]
[349831753,1737455438854,-500.0,0.00019389,2]
[349831754,1737455438864,-500.0,0.00019389,2]
[349831755,1737455438873,-626.96,0.00019389,2]
[349831756,1737455438883,-500.0,0.00019389,2]
[349831757,1737455438892,-548.75,0.00019389,2]
[349831758,1737455438902,-500.0,0.00019389,2]
[349831759,1737455438911,-500.0,0.00019389,2]
[349831760,1737455438921,-582.82,0.00019389,2]
[349831761,1737455438931,-500.0,0.00019389,2]
[349831762,1737455438941,-500.0,0.00019389,2]
[349831763,1737455438950,-500.0,0.00019389,2]
[349831764,1737455438959,-500.0,0.00019389,2]
[349831765,1737455438969,-500.0,0.00019389,2]
[349831766,1737455438979,-500.0,0.00019389,2]
[349831767,1737455438989,-500.0,0.00019389,2]
[349831768,1737455438999,-500.0,0.00019389,2]
[349831769,1737455439009,-500.0,0.00019389,2]
[349831770,1737455439018,-500.0,0.00019389,2]
[349831771,1737455439027,-500.0,0.00019389,2]
[349831772,1737455439037,-500.0,0.00019389,2]
[349831773,1737455439047,-500.0,0.00019389,2]
[349831774,1737455439056,-500.0,0.00019389,2]
[349831775,1737455439259,-500.0,0.00019389,2]
[349831776,1737455439269,-500.0,0.00019389,2]
[349831777,1737455439279,-500.0,0.00019389,2]
[349831778,1737455439289,-500.0,0.00019389,2]
[349831779,1737455439298,-500.0,0.00019389,2]
[349831780,1737455439307,-500.0,0.00019389,2]
[349831781,1737455439317,-500.0,0.00019389,2]
[349831782,1737455439326,-500.0,0.00019389,2]
[349831783,1737455439335,-500.0,0.00019389,2]
[349831784,1737455439344,-500.0,0.00019389,2]
[349831785,1737455439354,-500.0,0.00019389,2]
[349831786,1737455439363,-500.0,0.00019389,2]
[349831787,1737455439373,-500.0,0.00019389,2]
[349831788,1737455439382,-500.0,0.00019389,2]
[349831789,1737455439393,-666.87712735,0.0001939,2]
[349831790,1737455439403,-502.2366143,0.00019391,2]
[349831791,1737455439412,-596.0158765,0.00019391,2]
[349831792,1737455439423,-508.27334309,0.00019391,2]
[349831793,1737455439435,-533.4,0.00019391,2]
[349831794,1737455439445,-500.0,0.00019391,2]
[349831795,1737455439454,-500.0,0.00019391,2]
[349831796,1737455439464,-158.05071184,0.00019391,2]
[349831797,1737455439473,-500.0,0.00019391,2]
[349831798,1737455439483,-500.0,0.00019391,2]
[349831799,1737455439492,-500.0,0.00019391,2]
[349831800,1737455439502,-500.0,0.00019391,2]
[349831801,1737455439513,-200.62917503,0.00019391,2]
[349831802,1737455439523,-500.0,0.00019391,2]
[349831803,1737455439532,-500.0,0.00019391,2]
[349831804,1737455439541,-206.70261586,0.00019445,2]
[349831805,1737455439551,-896.64,0.00019452,2]
[349831806,1737455439560,-802.54,0.00019452,2]
[349831808,1737455439569,-599.33,0.00019452,2]
[349831810,1737455439579,-500.0,0.00019452,2]
[349831812,1737455439588,-1130.76,0.00019452,2]
[349831814,1737455439598,-1764.8,0.00019452,2]
[349831815,1737455439607,-500.0,0.00019452,2]
[349831816,1737455439616,-1170.87,0.00019452,2]
[349831817,1737455439626,-1935.46,0.00019452,2]
[349831818,1737455439636,-500.0,0.00019452,2]
[349831819,1737455439646,-1397.15,0.00019452,2]
[349831820,1737455439656,-888.75,0.00019452,2]
[349831821,1737455439665,-500.0,0.00019452,2]
[349831822,1737455439675,-997.88,0.00019452,2]
[349831823,1737455439685,-709.63,0.00019452,2]
[349831824,1737455439694,-902.94,0.00019452,2]
[349831825,1737455439704,-2544.76,0.00019452,2]
[349831826,1737455439712,-850.52,0.00019452,2]
[349831827,1737455439723,-2292.3,0.00019452,2]
[349831828,1737455439733,-500.0,0.00019452,2]
[349831829,1737455439742,-500.0,0.00019452,2]
[349831830,1737455439751,-500.0,0.00019452,2]
[349831831,1737455439761,-543.61,0.00019452,2]
[349831832,1737455439770,-500.0,0.00019452,2]
[349831833,1737455439779,-500.0,0.00019452,2]
[349831834,1737455439789,-500.0,0.00019452,2]
[349831835,1737455439798,-500.0,0.00019452,2]
[349831836,1737455439808,-1534.04,0.00019452,2]
[349831837,1737455439817,-500.0,0.00019452,2]
[349831838,1737455439826,-500.0,0.00019452,2]
[349831839,1737455439835,-500.0,0.00019452,2]
[349831840,1737455439845,-1237.06,0.00019452,2]
[349831841,1737455439855,-500.0,0.00019452,2]
[349831842,1737455439864,-500.0,0.00019452,2]
[349831843,1737455439873,-500.0,0.00019452,2]
[349831844,1737455439883,-500.0,0.00019452,2]
[349831845,1737455439893,-771.69,0.00019464,2]
[349831846,1737455439904,-753.5015692,0.000195,2]
[349831847,1737455439913,-1164.72,0.00019555,2]
[349831848,1737455439923,-1208.63,0.00019662,2]
[349831849,1737455439932,-720.29,0.00019662,2]
[349831850,1737455439941,-1135.55,0.00019662,2]
[349831851,1737455439951,-500.0,0.00019662,2]
[349831852,1737455439960,-5596.85,0.00019662,2]
[349831853,1737455439970,-500.0,0.00019662,2]
[349831854,1737455439979,-500.0,0.00019662,2]
[349831855,1737455439989,-500.0,0.00019662,2]
[349831856,1737455439999,-516.225877,0.00019662,2]
[349831857,1737455440009,-500.0,0.00019662,2]
[349831858,1737455440019,-786.72,0.00019662,2]
[349831859,1737455440028,-158.602004,0.00019662,2]
[349831860,1737455440037,-160.687533,0.00019662,2]
[349831861,1737455440047,-771.63,0.00019662,2]
[349831862,1737455440056,-500.0,0.00019662,2]
[349831863,1737455440066,-500.0,0.00019662,2]
[349831864,1737455440075,-543.76,0.00019662,2]
[349831865,1737455440084,-1177.6,0.00019662,2]
[349831866,1737455440093,-798.31,0.00019662,2]
[349831867,1737455440103,-358.333386,0.00019662,2]
[349831868,1737455440112,-1292.4,0.00019662,2]
[349831869,1737455440122,-941.38,0.00019662,2]
[349831870,1737455440131,-500.0,0.00019662,2]
[349831871,1737455440142,-500.0,0.00019662,2]
[349831872,1737455440152,-160.021937,0.00019662,2]
[349831873,1737455440162,-2147.55,0.00019662,2]
[349831875,1737455440171,-158.602003,0.00019662,2]
[349831877,1737455440180,-1700.18,0.00019662,2]
[349831879,1737455440189,-801.99,0.00019662,2]
[349831881,1737455440198,-987.08,0.00019662,2]
[349831882,1737455440207,-1814.27,0.00019662,2]
[349831884,1737455440217,-172.514459,0.00019662,2]
[349831886,1737455440226,-2064.99,0.00019662,2]
[349831888,1737455440236,-500.0,0.00019662,2]
[349831890,1737455440247,-500.0,0.00019662,2]
[349831893,1737455440258,-551.16,0.00019662,2]
[349831894,1737455440268,-905.56,0.00019662,2]
[349831897,1737455440277,-153.133225,0.00019662,2]
[349831899,1737455440287,-2404.18,0.00019662,2]
[349831900,1737455440297,-841.45,0.00019662,2]
[349831902,1737455440306,-172.514455,0.00019662,2]
[349831904,1737455440315,-500.0,0.00019662,2]
[349831906,1737455440325,-844.09,0.00019662,2]
[349831908,1737455440335,-208.822324,0.00019662,2]
[349831910,1737455440344,-711.51,0.00019662,2]
[349831912,1737455440354,-934.55,0.00019662,2]
[349831914,1737455440364,-908.64,0.00019662,2]
[349831916,1737455440373,-500.0,0.00019663,2]
[349831918,1737455440382,-500.0,0.00019663,2]
[349831920,1737455440394,-500.0,0.00019663,2]
[349831922,1737455440403,-500.0,0.00019663,2]
[349831925,1737455440413,-500.0,0.00019663,2]
[349831927,1737455440429,-500.0,0.00019663,2]
[349831929,1737455440438,-500.0,0.00019663,2]
[349831931,1737455440448,-500.0,0.00019663,2]
[349831933,1737455440457,-500.0,0.00019663,2]
[349831935,1737455440468,-500.0,0.00019663,2]
[349831937,1737455440477,-616.9,0.00019663,2]
[349831938,1737455440487,-500.0,0.00019663,2]
[349831940,1737455440497,-500.0,0.00019663,2]
[349831942,1737455440508,-500.0,0.00019663,2]
[349831944,1737455440517,-369.09098925,0.00019663,2]
[349831946,1737455440527,-500.0,0.00019663,2]
[349831948,1737455440536,-500.0,0.00019663,2]
[349831950,1737455440546,-500.0,0.00019663,2]
[349831952,1737455440555,-505.38135533,0.00019664,2]
[349831954,1737455440565,-500.0,0.00019664,2]
[349831956,1737455440574,-500.0,0.00019664,2]
[349831958,1737455440583,-501.33938937,0.00019664,2]
[349831960,1737455440593,-500.0,0.00019664,2]
[349831962,1737455440602,-502.33129292,0.00019664,2]
[349831964,1737455440611,-502.28309909,0.00019664,2]
[349831966,1737455440621,-500.98418141,0.00019664,2]
[349831968,1737455440631,-502.26313891,0.00019664,2]
[349831970,1737455440643,-501.43241384,0.00019664,2]
[349831972,1737455440652,-501.96800706,0.00019664,2]
[349831974,1737455440662,-178.54354605,0.00019664,2]
[349831976,1737455440671,-501.52404158,0.00019664,2]
[349831978,1737455440680,-500.0,0.00019664,2]
[349831980,1737455440690,-500.0,0.00019664,2]
[349831982,1737455440699,-500.0,0.00019664,2]
[349831984,1737455440708,-502.18993703,0.00019664,2]
[349831986,1737455440718,-500.0,0.00019664,2]
[349831988,1737455440729,-502.22314631,0.00019664,2]
[349831990,1737455440738,-502.32208662,0.00019664,2]
[349831992,1737455440748,-500.0,0.00019664,2]
[349831994,1737455440757,-500.0,0.00019664,2]
[349831996,1737455440766,-500.0,0.00019664,2]
[349831998,1737455440776,-500.0,0.00019664,2]
[349832000,1737455440785,-500.0,0.00019664,2]
[349832002,1737455440794,-500.0,0.00019664,2]
[349832004,1737455440803,-501.38974927,0.00019664,2]
[349832006,1737455440812,-503.88102067,0.00019664,2]
[349832008,1737455440821,-500.0,0.00019664,2]
[349832010,1737455440831,-501.12829599,0.00019664,2]
[349832012,1737455440840,-594.62375892,0.00019664,2]
[349832014,1737455440850,-500.0,0.00019664,2]
[349832016,1737455440859,-500.0,0.00019664,2]
[349832018,1737455440868,-500.0,0.00019664,2]
[349832020,1737455440877,-501.90270688,0.00019664,2]
[349832022,1737455440889,-500.0,0.00019664,2]
[349832024,1737455440898,-500.0,0.00019664,2]
[349832026,1737455440907,-504.48781793,0.00019664,2]
[349832028,1737455440916,-501.08857013,0.00019664,2]
[349832030,1737455440926,-500.0,0.00019664,2]
[349832032,1737455440935,-500.0,0.00019664,2]
[349832034,1737455440944,-502.38608696,0.00019664,2]
[349832036,1737455440953,-500.0,0.00019664,2]
[349832038,1737455440962,-501.69894397,0.00019664,2]
[349832040,1737455440971,-500.0,0.00019664,2]
[349832042,1737455440980,-500.43514881,0.00019664,2]
[349832044,1737455440990,-500.0,0.00019664,2]
[349832046,1737455440999,-501.74039251,0.00019664,2]
[349832048,1737455441009,-500.0,0.00019664,2]
[349832050,1737455441018,-501.95281615,0.00019664,2]
[349832052,1737455441027,-503.40524206,0.00019664,2]
[349832054,1737455441036,-501.7286647,0.00019664,2]
[349832056,1737455441045,-531.47210456,0.00019664,2]
[349832057,1737455441054,-500.0,0.00019664,2]
[349832060,1737455441064,-503.64962824,0.00019664,2]
[349832062,1737455441073,-500.66192317,0.00019664,2]
[349832064,1737455441082,-500.0,0.00019664,2]
[349832066,1737455441091,-500.94029044,0.00019664,2]
[349832067,1737455441100,-500.0,0.00019664,2]
[349832069,1737455441109,-502.41871091,0.00019664,2]
[349832071,1737455441118,-500.0,0.00019664,2]
[349832073,1737455441127,-500.0,0.00019664,2]
[349832075,1737455441137,-500.93908961,0.00019664,2]
[349832077,1737455441146,-500.0,0.00019664,2]
[349832079,1737455441155,-500.0,0.00019664,2]
[349832081,1737455441164,-515.06812098,0.00019664,2]
[349832083,1737455441173,-500.0,0.00019664,2]
[349832085,1737455441182,-500.0,0.00019664,2]
[349832087,1737455441191,-500.0,0.00019664,2]
[349832089,1737455441200,-500.0,0.00019664,2]
[349832091,1737455441209,-500.0,0.00019664,2]
[349832093,1737455441219,-199.0450684,0.00019664,2]
[349832095,1737455441228,-500.0,0.00019664,2]
[349832097,1737455441237,-500.0,0.00019664,2]
[349832099,1737455441247,-500.0,0.00019664,2]
[349832101,1737455441257,-500.0,0.00019664,2]
[349832103,1737455441266,-500.0,0.00019664,2]
[349832105,1737455441276,-500.0,0.00019664,2]
[349832107,1737455441285,-500.0,0.00019664,2]
[349832109,1737455441294,-500.0,0.00019664,2]
[349832111,1737455441303,-500.0,0.00019664,2]
[349832113,1737455441312,-500.0,0.00019664,2]
[349832115,1737455441321,-500.0,0.00019664,2]
[349832118,1737455441331,-500.0,0.00019664,2]
[349832119,1737455441340,-500.0,0.00019664,2]
[349832121,1737455441349,-500.0,0.00019664,2]
[349832124,1737455441359,-500.0,0.00019664,2]
[349832125,1737455441368,-505.46522328,0.00019664,2]
[349832128,1737455441378,-501.39662516,0.00019664,2]
[349832130,1737455441388,-553.97,0.00019664,2]
[349832132,1737455441401,-501.87801489,0.00019664,2]
[349832134,1737455441411,-500.0,0.00019664,2]
[349832136,1737455441421,-503.1098271,0.00019664,2]
[349832138,1737455441432,-500.0,0.00019664,2]
[349832140,1737455441442,-500.0,0.00019664,2]
[349832142,1737455441451,-500.0,0.00019664,2]